bitfinex/quotes_BTCUSD_20251027
["timestamp","ask_amount","ask_price","bid_price","bid_amount"]
[1761525033025,0.40356,114850.0,114840.0,0.61097435]
[1761525033239,0.40356,114850.0,114840.0,0.26497435]
[1761525033441,0.40356,114850.0,114840.0,0.26397435]
[1761525033868,0.40356,114850.0,114840.0,0.26497435]
[1761525034236,0.40356,114850.0,114840.0,0.60397435]
[1761525034440,0.40356,114850.0,114840.0,1.01305082]
[1761525034630,0.40356,114850.0,114840.0,1.01905082]
[1761525035032,0.40356,114850.0,114840.0,1.01305082]
[1761525036279,0.40356,114850.0,114840.0,0.60397435]
[1761525037180,0.40356,114850.0,114840.0,1.01305082]
[1761525040733,0.40356,114850.0,114840.0,0.60397435]
[1761525040953,0.40356,114850.0,114840.0,1.01305082]
[1761525043566,0.63338018,114850.0,114830.0,0.06248652]
[1761525043802,0.45924,114850.0,114830.0,0.26413347]
[1761525044013,0.45924,114850.0,114840.0,0.17415534]
[1761525044436,0.63338194,114850.0,114830.0,0.67320994]
[1761525045437,0.63638194,114850.0,114830.0,0.67320994]
[1761525045641,0.63638194,114850.0,114830.0,0.26413347]
[1761525045917,0.63338194,114850.0,114830.0,0.67320994]
[1761525046142,0.63338194,114850.0,114840.0,0.04672324]
[1761525048344,0.63638194,114850.0,114840.0,0.04672324]
[1761525048839,0.63638194,114850.0,114830.0,0.04686927]
[1761525048840,0.17415534,114840.0,114830.0,0.04686927]
[1761525049194,0.17191754,114840.0,114830.0,0.04686927]
[1761525049409,0.15352,114840.0,114830.0,0.45594574]
[1761525049607,0.32767534,114840.0,114830.0,0.0468868]
[1761525049821,0.15352,114840.0,114830.0,0.0468868]
[1761525050539,0.15352,114840.0,114830.0,0.22105731]
[1761525051907,0.15352,114840.0,114830.0,0.58121097]
[1761525052068,0.32767534,114840.0,114830.0,0.40704046]
[1761525052278,0.15352,114840.0,114830.0,0.58121097]
[1761525052479,0.47986018,114850.0,114830.0,1.03129286]
[1761525052480,0.25004,114850.0,114830.0,1.03129286]
[1761525052709,0.15352,114840.0,114830.0,0.32636682]
[1761525053799,0.15352,114840.0,114830.0,0.32736682]
[1761525054001,0.15352,114840.0,114830.0,1.04789258]
[1761525054226,0.15352,114840.0,114830.0,1.05289258]
[1761525055416,0.25004,114850.0,114840.0,0.51415534]
[1761525055583,0.25004,114850.0,114840.0,1.78328576]
[1761525055760,0.25004,114850.0,114840.0,1.42302288]
[1761525055960,0.40356,114850.0,114840.0,1.32450011]
[1761525056411,0.40356,114850.0,114840.0,0.98450011]
[1761525056609,0.40356,114850.0,114840.0,1.03122252]
[1761525056837,0.40356,114850.0,114840.0,0.98450011]
[1761525057062,0.40356,114850.0,114840.0,1.03122283]
[1761525057183,0.40356,114850.0,114840.0,1.03422283]
[1761525057569,0.40356,114850.0,114840.0,0.98750011]
[1761525058590,0.45924,114850.0,114840.0,0.98750011]
[1761525059006,0.45924,114850.0,114840.0,1.03423088]
[1761525060444,0.45924,114850.0,114840.0,0.58414899]
[1761525060730,0.45924,114850.0,114840.0,0.94441187]
[1761525062243,0.45924,114850.0,114840.0,1.3898406]
[1761525062244,0.25004,114850.0,114840.0,1.3898406]
[1761525062443,0.40356,114850.0,114840.0,1.3898406]
[1761525062668,0.25004,114850.0,114840.0,1.3898406]
[1761525062872,0.40356,114850.0,114840.0,1.78628576]
[1761525063009,0.25004,114850.0,114840.0,1.78628576]
[1761525063201,0.25004,114850.0,114840.0,1.72394527]
[1761525063396,0.25004,114850.0,114840.0,1.80149445]
[1761525063787,0.25004,114850.0,114840.0,1.53850279]
[1761525064404,0.0002,114870.0,114860.0,0.5503073]
[1761525064615,0.0002,114870.0,114860.0,1.24928806]
[1761525065035,0.0002,114870.0,114860.0,1.2025848]
[1761525065234,0.0002,114870.0,114860.0,1.24926261]
[1761525066332,0.0002,114870.0,114860.0,1.25026261]
[1761525066905,0.0002,114870.0,114860.0,1.25326261]
[1761525067340,0.0002,114870.0,114860.0,1.26058261]
[1761525067795,0.0002,114870.0,114860.0,1.37525644]
[1761525068398,0.0002,114870.0,114860.0,1.32857863]
[1761525068794,0.0002,114870.0,114860.0,1.21429415]
[1761525069020,0.0002,114870.0,114860.0,0.87429415]
[1761525069219,0.0002,114870.0,114860.0,0.83811187]
[1761525069450,0.15376,114870.0,114860.0,0.05059552]
[1761525069632,0.15376,114870.0,114860.0,0.004]
[1761525069837,0.32786986,114870.0,114860.0,0.004]
[1761525070057,0.32786986,114870.0,114860.0,0.003]
[1761525070265,0.32787168,114870.0,114850.0,0.56072277]
[1761525070467,0.15376,114870.0,114860.0,0.17712502]
[1761525070676,0.32786986,114870.0,114860.0,0.003]
[1761525070877,0.32786986,114870.0,114860.0,0.17712502]
[1761525072046,0.32786986,114870.0,114860.0,0.17812502]
[1761525072574,0.32786986,114870.0,114860.0,0.003]
[1761525072975,0.32786986,114870.0,114860.0,0.004]
[1761525074288,0.15376,114870.0,114860.0,0.17812502]
[1761525074490,0.15376,114870.0,114860.0,0.22472054]
[1761525074895,0.15376,114870.0,114860.0,0.83811187]
[1761525074896,0.0002,114870.0,114860.0,0.83811187]
[1761525075266,0.2094,114870.0,114860.0,0.83711187]
[1761525075410,0.2094,114870.0,114860.0,0.83411187]
[1761525075782,0.2094,114870.0,114860.0,0.83711187]
[1761525075954,0.2094,114870.0,114860.0,0.83411187]
[1761525076103,0.0002,114870.0,114860.0,0.83511187]
[1761525076303,0.2094,114870.0,114860.0,0.83811187]
[1761525076532,0.2094,114870.0,114860.0,0.83711187]
[1761525076746,0.2094,114870.0,114860.0,0.83811187]
[1761525077916,0.38350986,114870.0,114860.0,0.83811187]
[1761525078104,0.38350986,114870.0,114860.0,0.31453955]
[1761525078305,0.2094,114870.0,114860.0,0.31453955]
[1761525079942,0.38350986,114870.0,114860.0,0.14041453]
[1761525080510,0.38350986,114870.0,114860.0,0.05059552]
[1761525080748,0.38350986,114870.0,114860.0,0.22472054]
[1761525080916,0.2094,114870.0,114860.0,0.22472054]
[1761525081112,0.2094,114870.0,114860.0,0.22372054]
[1761525081340,0.2094,114870.0,114860.0,0.22472054]
[1761525081543,0.2094,114870.0,114860.0,0.22172054]
[1761525082011,0.2094,114870.0,114860.0,0.22372054]
[1761525082195,0.2094,114870.0,114860.0,0.22472054]
[1761525082530,0.2094,114870.0,114860.0,0.22372054]
[1761525082935,0.2094,114870.0,114860.0,0.17812502]
[1761525083147,0.2094,114870.0,114860.0,0.22472054]
[1761525085271,0.15368,114870.0,114860.0,0.22472054]
[1761525085442,0.20936,114870.0,114860.0,0.22472054]
[1761525086056,0.20936,114870.0,114860.0,0.22372054]
[1761525086254,0.20936,114870.0,114860.0,0.22072054]
[1761525087547,0.20936,114870.0,114860.0,0.74429286]
[1761525088371,0.20936,114870.0,114860.0,0.22072054]
[1761525092228,0.20936,114870.0,114860.0,0.17412502]
[1761525092647,0.17430986,114870.0,114850.0,1.09997972]
[1761525092866,0.38346986,114870.0,114860.0,0.04672004]
[1761525094124,0.38346986,114870.0,114850.0,0.23641892]
[1761525094125,0.38346986,114870.0,114850.0,0.22185881]
[1761525094336,0.17412502,114860.0,114850.0,0.22185881]
[1761525094594,0.17412502,114860.0,114850.0,0.22086022]
[1761525095155,0.17412502,114860.0,114850.0,0.17414018]
[1761525095965,0.38346986,114870.0,114850.0,0.17414018]
[1761525096152,0.17412502,114860.0,114840.0,0.22958314]
[1761525096279,0.38346986,114870.0,114840.0,0.65940215]
[1761525096280,0.15348,114850.0,114840.0,0.65940215]
[1761525097726,0.15348,114850.0,114840.0,0.66240215]
[1761525098132,0.15348,114850.0,114840.0,0.66040215]
[1761525098330,0.15348,114850.0,114840.0,0.57358314]
[1761525099244,0.15348,114850.0,114840.0,0.56958314]
[1761525099443,0.15348,114850.0,114840.0,1.09615546]
[1761525100085,0.17412586,114860.0,114850.0,0.17414018]
[1761525100288,0.38332586,114860.0,114850.0,0.17414018]
[1761525100737,0.38332586,114860.0,114840.0,1.18397447]
[1761525100862,0.38332586,114860.0,114840.0,0.66040215]
[1761525101075,0.38332586,114860.0,114840.0,1.18597447]
[1761525101327,0.38332586,114860.0,114840.0,1.18297447]
[1761525101772,0.18301535,114870.0,114850.0,0.17414018]
[1761525101976,0.2092,114860.0,114850.0,0.17414018]
[1761525102160,0.38332502,114860.0,114850.0,0.17414018]
[1761525103309,0.32764502,114860.0,114850.0,0.17414018]
[1761525103532,0.2092,114860.0,114850.0,0.17414018]
[1761525103707,0.38332502,114860.0,114850.0,0.17414018]
[1761525104624,0.0002,114870.0,114860.0,0.17412502]
[1761525104836,0.15372,114870.0,114860.0,0.78751635]
[1761525105063,0.0002,114870.0,114860.0,1.16369863]
[1761525105236,0.0002,114870.0,114860.0,1.36393867]
[1761525105802,0.0002,114870.0,114860.0,1.16125771]
[1761525107452,0.0002,114870.0,114860.0,1.16025771]
[1761525107840,0.0002,114870.0,114860.0,1.16725771]
[1761525108082,0.0002,114910.0,114900.0,0.1740644]
[1761525108280,0.0002,114910.0,114900.0,0.94118121]
[1761525108485,0.0002,114910.0,114900.0,0.92377477]
[1761525109315,0.0006864,114910.0,114900.0,0.95995705]
[1761525110433,0.0036864,114910.0,114900.0,0.95995705]
[1761525110689,0.0036864,114910.0,114900.0,0.92377477]
[1761525111668,0.0036864,114910.0,114900.0,0.60388341]
[1761525111874,0.0036864,114910.0,114900.0,1.12732722]
[1761525112547,0.0036864,114910.0,114900.0,0.60388341]
[1761525112748,0.0036864,114910.0,114900.0,1.12732722]
[1761525115810,0.17407955,114890.0,114880.0,0.0261151]
[1761525116011,0.42727921,114890.0,114850.0,0.75744385]
[1761525116220,0.42727921,114890.0,114860.0,0.08981901]
[1761525116221,0.17409556,114880.0,114860.0,0.08981901]
[1761525116394,0.17409556,114880.0,114870.0,0.52344381]
[1761525116618,0.38413556,114880.0,114870.0,0.52344381]
[1761525117001,0.38413556,114880.0,114860.0,0.78738677]
[1761525117759,0.21004,114880.0,114870.0,0.69755367]
[1761525118064,0.3841347,114880.0,114860.0,0.78738677]
[1761525118265,0.006,114880.0,114870.0,1.05496465]
[1761525118469,0.006,114880.0,114870.0,1.12737268]
[1761525118687,0.006,114880.0,114870.0,1.31803496]
[1761525118903,0.006,114880.0,114870.0,0.79459115]
[1761525119105,0.006,114880.0,114870.0,1.31803496]
[1761525119754,0.17406497,114900.0,114890.0,0.17407955]
[1761525120501,0.17406497,114900.0,114880.0,0.17408391]
[1761525120716,0.15448,114890.0,114880.0,0.60390292]
[1761525121136,0.15448,114890.0,114880.0,0.60391371]
[1761525121137,0.32855955,114890.0,114880.0,0.60391371]
[1761525121338,0.32855955,114890.0,114870.0,0.70625916]
[1761525121555,0.1740947,114880.0,114870.0,0.18281326]
[1761525121923,0.1740947,114880.0,114860.0,0.69756776]
[1761525122097,0.38823955,114890.0,114870.0,0.17410986]
[1761525122252,0.38824006,114890.0,114870.0,0.17410986]
[1761525122877,0.38824006,114890.0,114870.0,0.69755367]
[1761525123086,0.38424006,114890.0,114870.0,0.69755367]
[1761525124321,0.38424006,114890.0,114880.0,0.1740947]
[1761525124322,0.22976006,114890.0,114880.0,0.1740947]
[1761525124500,0.38424006,114890.0,114880.0,0.1740947]
[1761525125286,0.38424006,114890.0,114870.0,0.69755367]
[1761525126633,0.38724006,114890.0,114870.0,0.69755367]
[1761525126834,0.38424006,114890.0,114870.0,0.69755367]
[1761525127768,0.38424006,114890.0,114870.0,0.69855367]
[1761525129384,0.18349248,114910.0,114890.0,0.17407955]
[1761525129385,0.0006864,114910.0,114890.0,0.17407955]
[1761525129637,0.1551664,114910.0,114900.0,0.69750821]
[1761525129837,0.1551664,114910.0,114900.0,0.5828574]
[1761525130529,0.32921565,114910.0,114900.0,0.5828574]
[1761525130760,0.1641664,114910.0,114900.0,0.5828574]
[1761525131662,0.1641664,114910.0,114900.0,0.1740644]
[1761525131860,0.1641664,114910.0,114900.0,0.5828574]
[1761525132411,0.0096864,114910.0,114900.0,1.01267641]
[1761525134212,0.0096864,114910.0,114900.0,1.45765169]
[1761525134416,0.0096864,114910.0,114900.0,1.04885869]
[1761525134625,0.0096864,114910.0,114900.0,0.60388341]
[1761525134839,0.0096864,114910.0,114900.0,1.01267641]
[1761525135244,0.0096864,114910.0,114900.0,0.75844341]
[1761525135476,0.0096864,114910.0,114900.0,0.60388341]
[1761525135679,0.0096864,114910.0,114900.0,0.75844341]
[1761525136564,0.0096864,114910.0,114900.0,1.16723641]
[1761525137685,0.0096864,114910.0,114900.0,1.01267641]
[1761525138786,0.0096864,114910.0,114900.0,1.45765169]
[1761525138987,0.0096864,114910.0,114900.0,1.04885869]
[1761525139188,0.0096864,114910.0,114900.0,1.06503109]
[1761525139557,0.0006864,114910.0,114900.0,1.52382409]
[1761525139767,0.0006864,114910.0,114900.0,1.11503109]
[1761525139968,0.0036864,114910.0,114900.0,1.11503109]
[1761525140164,0.0006864,114910.0,114900.0,1.11503109]
[1761525140412,0.0036864,114910.0,114900.0,1.11503109]
[1761525142173,0.0036864,114910.0,114900.0,1.07884881]
[1761525142374,0.0036864,114910.0,114900.0,1.18332881]
[1761525143441,0.0036864,114910.0,114900.0,1.18336881]
[1761525143576,0.0036864,114910.0,114900.0,0.62005581]
[1761525143983,0.0036864,114910.0,114900.0,1.02884881]
[1761525145518,0.0036864,114910.0,114900.0,1.07546065]
[1761525148236,0.0036864,114910.0,114900.0,1.11164293]
[1761525148896,0.0036864,114910.0,114900.0,1.52043593]
[1761525149290,0.0036864,114910.0,114900.0,1.11164293]
[1761525149810,0.0006864,114910.0,114900.0,1.11164293]
[1761525150015,0.0006864,114910.0,114900.0,1.11264293]
[1761525150176,0.0006864,114910.0,114900.0,1.11864293]
[1761525151144,0.0006864,114910.0,114900.0,1.17428293]
[1761525152498,0.0006864,114910.0,114900.0,0.76548993]
[1761525152721,0.0006864,114910.0,114900.0,1.22428293]
[1761525153959,0.0006864,114910.0,114900.0,1.16864293]
[1761525154165,0.0006864,114910.0,114900.0,0.91424993]
[1761525154365,0.0006864,114910.0,114900.0,1.27643109]
[1761525155047,0.0006864,114910.0,114900.0,1.08584881]
[1761525155182,0.0006864,114910.0,114900.0,0.66088341]
[1761525155935,0.0006864,114910.0,114900.0,0.65388341]
[1761525156378,0.17773565,114910.0,114900.0,0.39]
[1761525156580,0.0036864,114910.0,114900.0,0.5640644]
[1761525156785,0.17773565,114910.0,114900.0,0.5640644]
[1761525158187,0.0036864,114910.0,114900.0,0.9728574]
[1761525160855,0.0036864,114910.0,114900.0,1.06267641]
[1761525161059,0.0036864,114910.0,114900.0,1.10928825]
[1761525161479,0.0036864,114910.0,114900.0,1.06267641]
[1761525162697,0.17773565,114910.0,114900.0,0.65388341]
[1761525162871,0.0036864,114910.0,114900.0,0.65388341]
[1761525164192,0.0036864,114910.0,114900.0,1.06267641]
[1761525165179,0.17773565,114910.0,114900.0,1.06267641]
[1761525165994,0.0036864,114910.0,114900.0,1.06267641]
[1761525166170,0.17773565,114910.0,114900.0,0.5640644]
[1761525166719,0.0036864,114910.0,114900.0,0.9728574]
[1761525167071,0.17773565,114910.0,114900.0,0.9728574]
[1761525169252,0.0036864,114910.0,114900.0,0.9728574]
[1761525171964,0.17773565,114910.0,114900.0,0.9728574]
[1761525172721,0.0036864,114910.0,114900.0,0.9728574]
[1761525173681,0.0036864,114910.0,114900.0,0.5640644]
[1761525173880,0.0036864,114910.0,114900.0,0.9728574]
[1761525174286,0.0036864,114910.0,114900.0,1.01946924]
[1761525177443,0.17773565,114910.0,114900.0,1.01946924]
[1761525178263,0.17773565,114910.0,114900.0,0.67946924]
[1761525178476,0.17773565,114910.0,114900.0,0.50540484]
[1761525178686,0.17773565,114910.0,114900.0,0.05]
[1761525179421,0.23392064,114910.0,114900.0,0.05]
[1761525179807,0.1740644,114900.0,114880.0,0.64274514]
[1761525179956,0.15412,114890.0,114880.0,0.73256415]
[1761525180371,0.15412,114890.0,114880.0,0.68595231]
[1761525181168,0.32819955,114890.0,114880.0,0.00454128]
[1761525181368,0.32819955,114890.0,114880.0,0.05119602]
[1761525181641,0.32819955,114890.0,114880.0,0.00454128]
[1761525181816,0.33319955,114890.0,114880.0,0.00454128]
[1761525182412,0.15912,114890.0,114880.0,0.58742898]
[1761525182580,0.005,114890.0,114880.0,0.58742898]
[1761525182865,0.15908,114890.0,114880.0,1.06390273]
[1761525183123,0.15908,114890.0,114880.0,0.65510973]
[1761525183368,0.33315955,114890.0,114880.0,1.06390273]
[1761525183619,0.15908,114890.0,114880.0,1.01724799]
[1761525183824,0.15908,114890.0,114880.0,1.06390273]
[1761525184026,0.15408,114890.0,114880.0,1.06490273]
[1761525184160,0.15408,114890.0,114880.0,1.06690273]
[1761525184507,0.15408,114890.0,114880.0,1.06490273]
[1761525184900,0.15408,114890.0,114880.0,1.06690273]
[1761525185447,0.15408,114890.0,114880.0,1.06590273]
[1761525185657,0.23037565,114910.0,114900.0,0.1740644]
[1761525185776,0.38441565,114910.0,114900.0,0.5828574]
[1761525187445,0.38741565,114910.0,114900.0,0.5828574]
[1761525188605,0.38741565,114910.0,114890.0,0.58285976]
[1761525188840,0.38741565,114910.0,114890.0,0.67267877]
[1761525189483,0.38741565,114910.0,114890.0,0.26388577]
[1761525189605,0.38741565,114910.0,114890.0,0.67267877]
[1761525189808,0.1740644,114900.0,114890.0,0.26389856]
[1761525190063,0.1740644,114900.0,114880.0,0.64278845]
[1761525190268,0.1740644,114900.0,114880.0,0.61715972]
[1761525190834,0.17407955,114890.0,114880.0,0.61715972]
[1761525191040,0.32815955,114890.0,114880.0,0.27715972]
[1761525191683,0.32815955,114890.0,114880.0,0.00454128]
[1761525192099,0.32815955,114890.0,114880.0,0.17863598]
[1761525193441,0.37838195,114890.0,114880.0,0.00454128]
[1761525193657,0.17412502,114860.0,114850.0,0.04665474]
[1761525193869,0.32820502,114860.0,114850.0,0.05119794]
[1761525194797,0.32820502,114860.0,114850.0,0.05128266]
[1761525196390,0.32820502,114860.0,114850.0,0.00462792]
[1761525196616,0.33120502,114860.0,114850.0,0.00462792]
[1761525197203,0.15708,114860.0,114850.0,0.1787681]
[1761525197423,0.33120502,114860.0,114850.0,0.00462792]
[1761525197625,0.33120502,114860.0,114850.0,0.1787681]
[1761525198043,0.15704,114860.0,114850.0,0.79238096]
[1761525200039,0.15704,114860.0,114850.0,0.26858711]
[1761525200247,0.33116502,114860.0,114850.0,0.09444693]
[1761525200414,0.33116502,114860.0,114850.0,0.26858711]
[1761525201364,0.15704,114860.0,114850.0,0.26858711]
[1761525203146,0.33116502,114860.0,114850.0,0.26858711]
[1761525203703,0.15704,114860.0,114850.0,0.26858711]
[1761525206959,0.15704,114860.0,114850.0,0.79238096]
[1761525209535,0.17411138,114870.0,114860.0,0.17412502]
[1761525209699,0.32803138,114870.0,114860.0,0.17412502]
[1761525209894,0.15392,114870.0,114860.0,0.80515038]
[1761525210114,0.2096,114880.0,114870.0,0.17410986]
[1761525215303,0.3836947,114880.0,114860.0,0.26394403]
[1761525216472,0.3836947,114880.0,114860.0,0.26994403]
[1761525217021,0.3836947,114880.0,114860.0,0.26394403]
[1761525217208,0.3836947,114880.0,114860.0,0.26694403]
[1761525217649,0.3836947,114880.0,114870.0,0.17410986]
[1761525219527,0.17410986,114870.0,114860.0,0.26394403]
[1761525222047,0.3836947,114880.0,114860.0,0.26394403]
[1761525223561,0.3836947,114880.0,114870.0,0.17410986]
[1761525225437,0.3866947,114880.0,114870.0,0.17410986]
[1761525227088,0.2126,114880.0,114870.0,0.17410986]
[1761525227296,0.3866947,114880.0,114870.0,0.17410986]
[1761525227518,0.3866947,114880.0,114860.0,0.78773788]
[1761525227710,0.3866947,114880.0,114860.0,0.26394403]
[1761525228175,0.17410986,114870.0,114860.0,0.26394403]
[1761525228337,0.17410986,114870.0,114860.0,0.08981901]
[1761525228619,0.17410986,114870.0,114860.0,0.26394403]
[1761525230195,0.3836947,114880.0,114860.0,0.26394403]
[1761525231888,0.17410986,114870.0,114860.0,0.26394403]
[1761525232090,0.3836947,114880.0,114860.0,0.26394403]
[1761525234335,0.3836947,114880.0,114870.0,0.17410986]
[1761525234537,0.2096,114880.0,114870.0,0.17410986]
[1761525234717,0.3836947,114880.0,114870.0,0.17410986]
[1761525235934,0.3866947,114880.0,114870.0,0.17410986]
[1761525237829,0.3866947,114880.0,114870.0,0.49409888]
[1761525240464,0.17410986,114870.0,114860.0,0.08981901]
[1761525240664,0.17410986,114870.0,114860.0,0.58393305]
[1761525241059,0.3866947,114880.0,114860.0,0.58393305]
[1761525241819,0.3836947,114880.0,114870.0,0.17410986]
[1761525242369,0.17410986,114870.0,114850.0,0.00462742]
[1761525242546,0.15372,114860.0,114850.0,0.60858607]
[1761525242927,0.32784502,114860.0,114850.0,0.60858607]
[1761525243471,0.15372,114860.0,114850.0,0.92857509]
[1761525245135,0.15372,114860.0,114850.0,0.93157509]
[1761525245335,0.15372,114860.0,114850.0,0.92857509]
[1761525245908,0.15372,114860.0,114850.0,0.93157509]
[1761525246114,0.15372,114870.0,114860.0,0.17411715]
[1761525246313,0.15372,114870.0,114860.0,0.51151867]
[1761525246511,0.32781722,114880.0,114870.0,0.17410986]
[1761525246771,0.32781722,114880.0,114870.0,0.49409888]
[1761525247308,0.23846352,114890.0,114870.0,0.49409888]
[1761525247509,0.15372,114880.0,114870.0,0.58391789]
[1761525249195,0.15672,114880.0,114870.0,0.58391789]
[1761525251563,0.003,114880.0,114870.0,0.58391789]
[1761525251785,0.003,114880.0,114870.0,1.32354099]
[1761525252224,0.003,114880.0,114870.0,1.35972327]
[1761525253059,0.003,114880.0,114870.0,1.36072327]
[1761525254048,0.0002,114910.0,114900.0,0.1740644]
[1761525254287,0.0002,114910.0,114900.0,1.3379685]
[1761525254488,0.0002,114910.0,114900.0,1.32349553]
[1761525254894,0.0002,114910.0,114900.0,1.34960992]
[1761525255250,0.0006864,114910.0,114900.0,0.6299978]
[1761525255446,0.0036864,114910.0,114900.0,1.34960992]
[1761525257132,0.0006864,114910.0,114900.0,1.34960992]
[1761525259421,0.0006864,114910.0,114900.0,1.02598614]
[1761525259641,0.00788375,114930.0,114920.0,0.51403411]
[1761525259822,0.00802962,114930.0,114920.0,0.8493954]
[1761525260616,0.00802962,114930.0,114920.0,0.85830622]
[1761525260858,0.00802962,114930.0,114920.0,0.81876902]
[1761525261134,0.00802962,114930.0,114920.0,1.53838114]
[1761525261336,0.00802962,114930.0,114920.0,0.81876902]
[1761525261552,0.00802962,114930.0,114920.0,1.53838114]
[1761525262821,0.00802962,114930.0,114920.0,1.53938114]
[1761525263420,0.00802962,114930.0,114920.0,1.54238114]
[1761525265023,0.00802962,114930.0,114920.0,0.82276902]
[1761525265225,0.00802962,114930.0,114920.0,1.54238114]
[1761525265666,0.00802962,114930.0,114920.0,0.69519376]
[1761525265871,0.00802962,114930.0,114920.0,1.41480588]
[1761525272102,0.00802962,114930.0,114920.0,1.77461194]
[1761525272304,0.00802962,114930.0,114920.0,0.69519376]
[1761525272504,1e-08,114930.0,114920.0,1.41480588]
[1761525273236,1e-08,114930.0,114920.0,0.69519376]
[1761525273610,1e-08,114930.0,114920.0,1.41480588]
[1761525275797,1e-08,114930.0,114920.0,1.3786236]
[1761525276823,1e-08,114930.0,114920.0,1.41480588]
[1761525277057,1e-08,114930.0,114920.0,0.69519376]
[1761525277211,1e-08,114930.0,114920.0,0.67881754]
[1761525277439,1e-08,114930.0,114920.0,0.28399592]
[1761525277639,1e-08,114930.0,114920.0,0.0201428]
[1761525277847,1e-08,114930.0,114920.0,0.19417691]
[1761525278187,0.17401897,114930.0,114920.0,0.37994886]
[1761525278733,1e-08,114930.0,114920.0,0.55298297]
[1761525279360,0.17401897,114930.0,114920.0,0.55298297]
[1761525279630,0.17401897,114930.0,114920.0,0.54998297]
[1761525279769,0.17201547,114930.0,114920.0,0.37594886]
[1761525279975,0.18101547,114930.0,114920.0,0.37594886]
[1761525280369,0.33461547,114930.0,114920.0,0.54998297]
[1761525280568,0.33461547,114930.0,114920.0,0.19017691]
[1761525281044,0.1626,114930.0,114920.0,0.54998297]
[1761525281539,0.1626,114930.0,114920.0,0.19017691]
[1761525281689,0.1626,114930.0,114920.0,0.54998297]
[1761525281888,0.1626,114930.0,114920.0,0.19017691]
[1761525282095,0.009,114930.0,114920.0,0.54998297]
[1761525282329,0.009,114930.0,114920.0,0.99960804]
[1761525283147,0.18912821,114940.0,114930.0,0.17401896]
[1761525283343,0.18921285,114940.0,114930.0,0.92717577]
[1761525283519,0.18921285,114940.0,114930.0,0.90977388]
[1761525284596,0.03561285,114940.0,114930.0,1.33959289]
[1761525284909,0.04161285,114940.0,114930.0,1.33959289]
[1761525285765,0.03561285,114940.0,114930.0,1.33959289]
[1761525286278,0.03561285,114940.0,114930.0,1.37057887]
[1761525286475,0.03561285,114940.0,114930.0,1.37157887]
[1761525286983,0.03561285,114940.0,114930.0,0.65096675]
[1761525287229,0.03561285,114940.0,114930.0,1.01177281]
[1761525287731,0.03561285,114940.0,114930.0,1.01077281]
[1761525287941,0.03861285,114940.0,114930.0,1.01077281]
[1761525288129,0.03861285,114940.0,114930.0,1.37057887]
[1761525289071,0.03861285,114940.0,114930.0,0.67077281]
[1761525289280,0.03861285,114940.0,114930.0,0.63978683]
[1761525289484,0.03861285,114940.0,114930.0,0.67077281]
[1761525289692,0.19221285,114940.0,114930.0,0.67077281]
[1761525290201,0.03861285,114940.0,114930.0,1.03057887]
[1761525290387,0.03861285,114940.0,114930.0,1.07706721]
[1761525290639,0.03861285,114940.0,114930.0,1.03057887]
[1761525291306,0.03861285,114940.0,114930.0,0.31096675]
[1761525291532,0.03861285,114940.0,114930.0,0.49675385]
[1761525291735,0.03861285,114940.0,114930.0,0.27998077]
[1761525291890,0.03861285,114940.0,114930.0,0.63978683]
[1761525292093,0.22258012,114950.0,114930.0,0.63978683]
[1761525292304,0.17400382,114940.0,114930.0,0.54996778]
[1761525292530,0.17400382,114940.0,114930.0,0.19016172]
[1761525292843,0.17400382,114940.0,114930.0,0.0161428]
[1761525293041,0.17400382,114940.0,114920.0,0.20502009]
[1761525293259,0.32761896,114930.0,114920.0,0.6547298]
[1761525293470,0.1536,114930.0,114920.0,0.56491079]
[1761525293638,0.1536,114930.0,114920.0,0.20510473]
[1761525294051,0.32760584,114940.0,114920.0,0.17411875]
[1761525294220,0.32760584,114940.0,114920.0,0.22072797]
[1761525294425,0.32760584,114940.0,114930.0,0.35980606]
[1761525295225,0.32760584,114940.0,114930.0,0.53382502]
[1761525295552,0.32760584,114940.0,114920.0,0.20610473]
[1761525295792,0.32760584,114940.0,114930.0,0.53382502]
[1761525295793,0.17400382,114940.0,114930.0,0.53382502]
[1761525295997,0.19702287,114960.0,114940.0,0.17400382]
[1761525296198,0.32758869,114950.0,114940.0,0.17400382]
[1761525296748,0.01435058,114960.0,114950.0,0.17398869]
[1761525297075,0.22630874,114960.0,114950.0,0.17398869]
[1761525297368,0.40028229,114960.0,114950.0,0.53379475]
[1761525297745,0.22630874,114960.0,114950.0,0.53379475]
[1761525297953,0.17678874,114960.0,114950.0,0.62361376]
[1761525298523,0.17678874,114960.0,114950.0,0.2638077]
[1761525298731,0.17678874,114960.0,114950.0,0.62361376]
[1761525299086,0.17078874,114960.0,114950.0,0.62361376]
[1761525299230,0.17078874,114960.0,114950.0,0.2638077]
[1761525299442,0.17378874,114960.0,114950.0,0.67361376]
[1761525299876,0.17107058,114960.0,114950.0,0.67361376]
[1761525300475,0.34504413,114960.0,114950.0,0.05]
[1761525300717,0.34504413,114960.0,114950.0,0.58379475]
[1761525300718,0.17107058,114960.0,114950.0,0.58379475]
[1761525301235,0.34504413,114960.0,114950.0,0.05]
[1761525301435,0.34504413,114960.0,114950.0,0.40980606]
[1761525301599,0.34504413,114960.0,114950.0,0.58379475]
[1761525301972,0.34545848,114960.0,114950.0,0.58379475]
[1761525302176,0.17144493,114960.0,114950.0,0.61478073]
[1761525302515,0.36859931,114960.0,114950.0,0.05]
[1761525302909,0.34541848,114960.0,114950.0,0.05]
[1761525305601,0.34541848,114960.0,114950.0,0.40980606]
[1761525305807,0.34541848,114960.0,114950.0,0.05]
[1761525307923,0.19173848,114960.0,114950.0,0.22398869]
[1761525308123,0.19173848,114960.0,114950.0,1.06237431]
[1761525308124,0.17148493,114960.0,114950.0,1.06237431]
[1761525308461,0.17148493,114960.0,114950.0,1.09336029]
[1761525309108,0.01776493,114960.0,114950.0,1.09336029]
[1761525310231,0.01476493,114960.0,114950.0,1.09336029]
[1761525310544,0.01476493,114960.0,114950.0,1.09636029]
[1761525310750,0.01476493,114960.0,114950.0,1.25004029]
[1761525310891,0.01476493,114960.0,114950.0,1.25104029]
[1761525311502,0.01476493,114960.0,114950.0,1.29752863]
[1761525312528,0.01476493,114960.0,114950.0,0.88896202]
[1761525312734,0.01476493,114960.0,114950.0,1.29752863]
[1761525313054,0.01476493,114960.0,114950.0,0.88896202]
[1761525313232,0.01476493,114960.0,114950.0,1.29752863]
[1761525313799,0.01476493,114960.0,114950.0,1.41191476]
[1761525316275,0.01476493,114960.0,114950.0,1.36542642]
[1761525318622,0.01476493,114960.0,114950.0,0.84247368]
[1761525318823,0.01476493,114960.0,114950.0,1.36542642]
[1761525319587,0.01476493,114960.0,114950.0,1.44809704]
[1761525320007,0.01476493,114960.0,114950.0,1.41711106]
[1761525320212,0.0352308,114970.0,114960.0,0.55015583]